[Event "ChessKid Cup Div-I 2023"]
[Site "Online"]
[Date "2023.05.25"]
[Round "54.1"]
[White "Van Foreest, Jorden"]
[Black "Caruana, Fabiano"]
[Result "1/2-1/2"]
[ECO "C89"]
[WhiteElo "2689"]
[BlackElo "2764"]
[Annotator "TA"]
[PlyCount "129"]
[EventDate "2023.05.21"]
[EventType "k.o."]
[EventCountry "NET"]
[SourceTitle "playchess.com"]
[Source "ChessBase"]
[SourceQuality "1"]
[TimeControl "900+3"]

{[%evp 23,129,17,2,0,0,0,13,27,44,10,8,-13,-6,-14,-16,-14,-14,-17,-16,-13,-13,-28,-24,-28,67,67,61,76,73,64,91,98,110,110,110,110,110,110,110,110,110,110,110,110,110,110,110,110,110,110,110,100,103,100,100,100,103,100,110,110,110,110,110,110,110,110,110,50,110,100,110,17,110,0,110,100,100,100,100,81,100,62,81,79,81,81,81,16,16,16,16,0,0,0,0,0,0,0,0,0,0,0,0,0,0,0,12,0]} 1. e4 {[%emt 0:00:05]} e5 {[%emt 0:00:05]} 2. Nf3 {[%emt 0:00:01]} Nc6 {[%emt 0:00:02]} 3. Bb5 {[%emt 0:00:02][%cal Bf1b5,Bb5a4,Ba4b3][%mdl 32]} a6 {[%emt 0:00:01]} 4. Ba4 {[%emt 0:00:01]} Nf6 {[%emt 0:00:02]} 5. O-O {[%emt 0:00:02]} Be7 {[%emt 0:00:04]} 6. Re1 {[%emt 0:00:35]} b5 {[%emt 0:00:02]} 7. Bb3 {[%emt 0:00:01]} O-O {[%emt 0:00:01]} 8. c3 {[%emt 0:00:03]} d5 {[%emt 0:00:03]} 9. exd5 {[%emt 0:00:01]} Nxd5 {[%emt 0:00:00]} 10. a4 {[%emt 0:00:02]} Bb7 {[%emt 0:01:43]} 11. axb5 {[%emt 0:00:06]} axb5 {[%emt 0:00:00]} 12. Rxa8 {[%emt 0:00:01]} Bxa8 {[%emt 0:00:01]} 13. d4 {[%emt 0:00:10] C89: Closed Ruy Lopez: Marshall Attack.} exd4 {[%emt 0:00:17]} 14. Qd3 {[%emt 0:00:02] [#]} Bf6 $146 {[%emt 0:01:05][%cal Od4c3]} ({Predecessor:} 14... b4 15. cxd4 Bf6 16. h3 Qd6 17. Bc2 g6 18. Bh6 Bg7 19. Bxg7 Kxg7 20. Nbd2 Nf4 {1-0 Stankovic,M (2412)-Matta,V (2305) Arandjelovac ASK-6 GM 2022 (9)}) 15. Qxb5 {[%emt 0:00:10]} Nde7 {[%emt 0:00:56]} 16. Bg5 {[%emt 0:01:52]} (16. Nbd2 $5 {[%cal Rd2e4]}) 16... Ng6 {[%emt 0:01:17]} 17. Qf5 {[%emt 0:02:44]} Qb8 {[%emt 0:03:37] Strongly threatening ...Bxg5.} 18. Bxf6 {[%emt 0:02:17][%cal Ob1d2] Nbd2! would be deadly.} Qxb3 {[%emt 0:00:06]} 19. Nbd2 {[%emt 0:00:37]} (19. Nxd4 $2 {perishes.} Qb7 20. Nf3 gxf6 21. Qxf6 Qxb2 $19) (19. Bxd4 {simplifies} Nxd4 20. cxd4 Qxb2 21. Nbd2) 19... Qxb2 {[%emt 0:00:20]} 20. Bxd4 {[%emt 0:00:08]} Nxd4 {[%emt 0:00:18]} 21. cxd4 {[%emt 0:00:02]} h6 {[%emt 0:00:31]} 22. Ne4 {[%emt 0:00:43]} Qb4 {[%emt 0:00:06][%cal Og6h4] ...Nh4! is the strong threat.} 23. Re3 {[%emt 0:01:11] [#]} Nh4 {[%emt 0:02:05]} 24. Nf6+ $1 $14 {[%emt 0:00:58]} gxf6 {[%emt 0:00:03]} 25. Nxh4 {[%emt 0:00:00] White wants to mate with Rg3+.} Qxd4 {[%emt 0:00:02] [#] ( -> ...Qd1+)} 26. h3 $1 {[%emt 0:00:05]} Qxh4 {[%emt 0:01:52]} (26... Rd8 27. Ng6) 27. Rg3+ {[%emt 0:00:02]} Kh8 {[%emt 0:00:01] aiming for ...Be4.} 28. Rg4 {[%emt 0:00:01] Inhibits Be4.} Qxg4 {[%emt 0:00:01]} 29. hxg4 $16 {[%emt 0:00:29][%mdl 4096] Endgame KQ-KRB} ({Of course not} 29. Qxg4 $6 Rg8 30. Qf4 Rxg2+ 31. Kf1 Kg7 $11) 29... Kg7 {[%emt 0:00:02]} 30. Qd7 {[%emt 0:00:20] Repels Rd8} c5 {[%emt 0:00:10]} 31. Qc7 {[%emt 0:00:01] Prevents Rb8. White is more active.} Bd5 {[%emt 0:00:09]} 32. Qxc5 {[%emt 0:00:03]} Be6 {[%emt 0:00:00]} 33. f3 {[%emt 0:00:09]} Rd8 {[%emt 0:00:05]} 34. Qf2 {[%emt 0:00:39]} Rd5 {[%emt 0:00:05]} 35. Qg3 {[%emt 0:00:06]} Rg5 {[%emt 0:00:01]} 36. Qf4 {[%emt 0:00:07]} Re5 {[%emt 0:00:03]} 37. Kh2 {[%emt 0:00:05]} Rg5 {[%emt 0:00:01]} 38. Qd4 {[%emt 0:00:02]} Rd5 {[%emt 0:00:03]} 39. Qc3 {[%emt 0:00:01]} Rg5 {[%emt 0:00:01]} 40. Qb2 {[%emt 0:00:07]} Rg6 {[%emt 0:00:07]} 41. Kg1 {[%emt 0:00:07]} Rg5 {[%emt 0:00:01]} 42. Kf2 {[%emt 0:00:01]} Rg6 {[%emt 0:00:02]} 43. Ke3 {[%emt 0:00:01]} Rg5 {[%emt 0:00:01]} 44. Kf4 {[%emt 0:00:19]} Rg6 {[%emt 0:00:01]} 45. Qc1 {[%emt 0:00:22]} (45. Qf2 $16) 45... Rg5 {[%emt 0:00:04]} (45... h5 $1 $14) 46. Qh1 {[%emt 0:00:01]} Rg6 {[%emt 0:00:03]} 47. Kg3 {[%emt 0:00:14]} (47. Ke3 $16) 47... Rg5 {[%emt 0:00:02]} (47... f5 $1 $11) 48. Kf4 {[%emt 0:00:12]} Rg6 $1 {[%emt 0:00:01]} 49. Ke4 {[%emt 0:00:04]} Rg5 {[%emt 0:00:02]} 50. Kd4 {[%emt 0:00:00]} Rd5+ {[%emt 0:00:02]} 51. Kc3 {[%emt 0:00:07]} Rc5+ {[%emt 0:00:03]} 52. Kb4 {[%emt 0:00:02]} Rg5 {[%emt 0:00:00]} 53. Qh4 {[%emt 0:00:06]} Re5 {[%emt 0:00:11]} 54. Qf2 {[%emt 0:00:10]} Rg5 {[%emt 0:00:03]} 55. f4 {[%emt 0:00:09]} (55. Kc3 $16) 55... Rxg4 $11 {[%emt 0:00:02] The position is equal.} 56. Kc5 {[%emt 0:00:00]} f5 {[%emt 0:00:38]} 57. Kd6 {[%emt 0:00:01][%mdl 1024] White has compensation.} Kh7 {[%emt 0:00:11]} 58. Ke7 {[%emt 0:00:02]} Rg8 {[%emt 0:00:01]} 59. g3 {[%emt 0:00:03]} Rg6 {[%emt 0:00:01]} 60. Qf3 {[%emt 0:00:05]} Rg8 {[%emt 0:00:02]} 61. Qd3 {[%emt 0:00:01]} Rg6 {[%emt 0:00:03]} 62. Qc3 {[%emt 0:00:07]} Rg8 {[%emt 0:00:02]} 63. Qd3 {[%emt 0:00:06]} Rg6 {[%emt 0:00:01]} 64. Qc3 {[%emt 0:00:04]} Rg8 {[%emt 0:00:01]} 65. Qd3 {[%emt 0:00:00] Weighted Error Value: White=0.13 (very precise) /Black=0.11 (very precise)} 1/2-1/2

[Event "ChessKid Cup Div-I 2023"]
[Site "Online"]
[Date "2023.05.25"]
[Round "54.2"]
[White "Caruana, Fabiano"]
[Black "Van Foreest, Jorden"]
[Result "1/2-1/2"]
[ECO "C65"]
[WhiteElo "2764"]
[BlackElo "2689"]
[Annotator "TA"]
[PlyCount "112"]
[EventDate "2023.05.21"]
[EventType "k.o."]
[EventCountry "NET"]
[SourceTitle "playchess.com"]
[Source "ChessBase"]
[SourceQuality "1"]
[TimeControl "900+3"]

{[%evp 9,112,25,22,12,27,0,10,0,27,23,29,30,44,60,60,35,70,77,64,67,72,67,80,40,31,29,41,29,38,18,27,25,29,0,0,0,0,0,0,-6,-6,-6,-6,0,0,0,0,0,0,0,0,0,0,0,19,3,7,4,7,2,6,0,15,15,42,33,32,34,66,68,70,66,85,77,100,0,0,0,0,0,0,0,0,0,0,0,0,0,0,0,0,0,0,0,0,0,0,0,0,0,0,0,0,0,0]} 1. e4 {[%emt 0:00:03]} e5 {[%emt 0:00:05]} 2. Nf3 {[%emt 0:00:02]} Nc6 {[%emt 0:00:01]} 3. Bb5 {[%emt 0:00:01]} Nf6 {[%emt 0:00:01]} 4. d3 {[%emt 0:00:02]} Bc5 {[%emt 0:00:01]} 5. Bxc6 {[%emt 0:00:10]} dxc6 {[%emt 0:00:03]} 6. h3 {[%emt 0:00:07] C65: Ruy Lopez: Berlin Defence (3...Nf6), unusual lines and 4 0-0 Bc5.} Bd6 {[%emt 0:01:22]} 7. Nc3 {[%emt 0:00:20]} h6 {[%emt 0:00:07]} 8. O-O {[%emt 0:00:50] [#]} Nd7 $146 {[%emt 0:00:34]} ({Predecessor:} 8... Be6 9. Be3 Qd7 10. Qd2 c5 11. Nh2 O-O-O 12. f4 exf4 13. Bxf4 Bxf4 14. Rxf4 g5 15. Rxf6 {1-0 Knox,A (1531)-Wybrew,R (1512) BCCA/C1/Tr137 2016}) 9. Nd2 {[%emt 0:00:11]} O-O {[%emt 0:00:47]} 10. Nc4 {[%emt 0:00:03]} Nb6 {[%emt 0:00:26]} 11. Nxd6 {[%emt 0:00:03]} cxd6 {[%emt 0:00:01]} 12. f4 {[%emt 0:00:03]} exf4 {[%emt 0:00:23]} 13. Bxf4 {[%emt 0:00:03]} Be6 {[%emt 0:00:12]} 14. Qf3 {[%emt 0:00:15]} d5 {[%emt 0:00:05]} 15. Qg3 {[%emt 0:00:07]} Kh7 {[%emt 0:00:01] Black is weak on the dark squares} 16. Bc7 {[%emt 0:01:26] White is much more active.} Qd7 {[%emt 0:00:28]} 17. a4 {[%emt 0:01:04]} Rae8 {[%emt 0:02:22]} 18. Bd6 {[%emt 0:00:56] Strongly threatening a5.} Rg8 {[%emt 0:00:03][%cal Oe6h3]} 19. Bc5 {[%emt 0:00:06]} Nc8 {[%emt 0:00:09]} 20. exd5 {[%emt 0:02:23]} Bxd5 {[%emt 0:00:01]} 21. Rf2 {[%emt 0:00:14]} b6 {[%emt 0:00:11]} 22. Be3 {[%emt 0:00:01]} Ne7 {[%emt 0:00:24]} 23. Raf1 {[%emt 0:00:39] Threatens to win with Nxd5.} f6 {[%emt 0:00:10]} 24. Bd2 {[%emt 0:00:14]} c5 {[%emt 0:00:16]} 25. Nxd5 {[%emt 0:01:10]} Nxd5 {[%emt 0:00:06]} 26. a5 {[%emt 0:00:06]} Re5 {[%emt 0:01:00]} 27. axb6 {[%emt 0:00:04]} axb6 {[%emt 0:00:02]} 28. d4 {[%emt 0:00:12]} cxd4 {[%emt 0:00:23] White must now prevent ...Ne3.} 29. Qd3+ {[%emt 0:00:03]} Kh8 {[%emt 0:00:00]} 30. Qxd4 {[%emt 0:00:03]} Qe6 {[%emt 0:00:00]} 31. Qd3 {[%emt 0:00:50]} Rc8 {[%emt 0:00:43]} 32. Rf5 {[%emt 0:00:37]} (32. Bxh6 {looks sharper.} g5 33. c4 Nf4 34. Rxf4 gxf4 35. Bxf4 Re1 36. Rxe1 Qxe1+ 37. Kh2) 32... Rxf5 {[%emt 0:00:23]} 33. Rxf5 {[%emt 0:00:00]} Ne7 {[%emt 0:00:00]} 34. Rb5 {[%emt 0:00:22]} Qc6 {[%emt 0:00:10]} 35. c3 {[%emt 0:00:21]} Ng6 {[%emt 0:00:01][%mdl 64] [#] Deflection} 36. Qd5 {[%emt 0:00:09] next Qxc6 is good for White.} Qxd5 {[%emt 0:01:20]} 37. Rxd5 $11 {[%emt 0:00:00][%mdl 4096] Endgame KRB-KRN} Ne5 {[%emt 0:00:01]} 38. b3 {[%emt 0:00:03]} Rc6 {[%emt 0:00:55]} 39. c4 {[%emt 0:00:06]} Kg8 {[%emt 0:00:00]} 40. Bc3 {[%emt 0:00:11]} Ng6 {[%emt 0:00:09] [#]} 41. Kf2 $1 {[%emt 0:00:12]} Nf4 {[%emt 0:00:06]} 42. Rd7 {[%emt 0:00:36]} (42. Rd8+ $16 Kh7 43. Bb4) 42... Ne6 {[%emt 0:00:23] The position is equal.} 43. Bb4 {[%emt 0:00:35]} Nc5 {[%emt 0:00:09]} 44. Bxc5 {[%emt 0:00:02]} bxc5 {[%emt 0:00:00] KR-KR} 45. Rd5 {[%emt 0:00:15]} Rb6 {[%emt 0:00:08]} 46. Rxc5 {[%emt 0:00:02] Rb5 is the strong threat.} Rxb3 {[%emt 0:00:01]} 47. h4 {[%emt 0:00:05]} Kf7 {[%emt 0:00:22]} 48. h5 {[%emt 0:00:03]} Rc3 {[%emt 0:00:02]} 49. Rc7+ {[%emt 0:00:03]} Ke6 {[%emt 0:00:02]} 50. c5 {[%emt 0:00:17]} Kf5 {[%emt 0:00:22]} 51. c6 {[%emt 0:00:02]} Kf4 {[%emt 0:00:18]} 52. Ke2 {[%emt 0:00:38]} Ke5 {[%emt 0:00:00]} 53. g4 {[%emt 0:00:07]} f5 {[%emt 0:00:49]} 54. Kd2 {[%emt 0:00:05]} Rc5 {[%emt 0:00:03]} 55. gxf5 {[%emt 0:00:12]} Kxf5 {[%emt 0:00:04]} 56. Rxg7 {[%emt 0:00:06] And now Rg6 would win.} Rxc6 {[%emt 0:00:02] Weighted Error Value: White=0.06 (flawless) /Black=0.05 (flawless)} 1/2-1/2

[Event "ChessKid Cup Div-I 2023"]
[Site "Online"]
[Date "2023.05.25"]
[Round "54.3"]
[White "Caruana, Fabiano"]
[Black "Van Foreest, Jorden"]
[Result "1-0"]
[ECO "C72"]
[WhiteElo "2764"]
[BlackElo "2689"]
[Annotator "TA"]
[PlyCount "95"]
[EventDate "2023.05.21"]
[EventType "k.o."]
[EventCountry "NET"]
[SourceTitle "playchess.com"]
[Source "ChessBase"]
[SourceQuality "1"]
[TimeControl "900+3"]

{[%evp 10,95,43,24,33,31,38,20,24,24,28,23,30,29,35,20,24,26,25,14,15,22,31,19,19,14,75,74,81,16,18,5,14,4,15,0,16,0,33,25,35,33,68,42,23,22,31,17,32,22,106,93,143,146,156,156,216,214,217,215,321,328,417,425,427,424,420,406,383,387,420,341,642,629,627,598,856,863,781,777,29978,979,29975,29975,29975,29976,5106,1610]} 1. e4 {[%emt 0:00:06]} e5 {[%emt 0:05:16]} 2. Nf3 {[%emt 0:00:05]} Nc6 {[%emt 0:00:03]} 3. Bb5 {[%emt 0:00:04]} a6 {[%emt 0:00:05]} 4. Ba4 {[%emt 0:00:04]} d6 {[%emt 0:00:04]} 5. O-O {[%emt 0:00:09]} Bd7 {[%emt 0:00:04]} 6. c4 {[%emt 0:00:07]} Be7 {[%emt 0:00:07] C72: Ruy Lopez: Deferred Steinitz: 5 0-0.} 7. Nc3 {[%emt 0:00:04]} Bf6 {[%emt 0:00:04] [#]} 8. d3 $146 {[%emt 0:00:09]} ({Predecessor:} 8. Nd5 h6 9. Re1 g5 10. d4 Bg7 11. dxe5 dxe5 12. g3 Nge7 13. Bd2 O-O 14. Bc3 {½-½ Hinne,J-Koester,H GER-ch48 Kandidatenturnier10 1965 (10)}) 8... Nge7 {[%emt 0:00:04] The position is equal.} 9. Be3 {[%emt 0:00:07]} O-O {[%emt 0:00:03]} 10. h3 {[%emt 0:00:05]} h6 {[%emt 0:00:05]} 11. Rc1 {[%emt 0:00:06]} Rc8 {[%emt 0:00:04]} 12. a3 {[%emt 0:00:06]} Nd4 {[%emt 0:00:22]} 13. Bxd4 {[%emt 0:00:05]} exd4 {[%emt 0:00:13]} 14. Bxd7 {[%emt 0:00:06]} Qxd7 {[%emt 0:00:25]} 15. Nd5 {[%emt 0:00:09]} Nxd5 {[%emt 0:00:04]} 16. cxd5 {[%emt 0:00:03]} c5 {[%emt 0:00:08]} 17. dxc6 {[%emt 0:00:11]} bxc6 {[%emt 0:00:07]} (17... Rxc6 $11 18. Qa4 Rfc8 19. Rxc6 Rxc6) 18. Qa4 $16 {[%emt 0:00:05][%csl LRa6,LRd4]} Qb7 {[%emt 0:00:04]} 19. Rc2 {[%emt 0:00:06] White is more active.} (19. Nxd4 $16 Bxd4 20. Qxd4) 19... c5 $11 {[%emt 0:00:08]} 20. Qc4 {[%emt 0:00:27]} Rb8 {[%emt 0:00:06]} 21. Nd2 {[%emt 0:00:06]} Rfe8 {[%emt 0:00:19]} 22. Qa2 {[%emt 0:00:18]} Qd7 {[%emt 0:00:12]} 23. f4 {[%emt 0:00:23][%cal Bf2f4,Bf4f5][%mdl 32]} (23. Qd5 $5 {[%cal Rc2c5]}) 23... g6 {[%emt 0:00:04]} 24. Qc4 {[%emt 0:00:37]} (24. b4 $5) 24... Rb6 {[%emt 0:00:10]} 25. Qd5 {[%emt 0:00:11] And now Nc4 would win.} Qb7 {[%emt 0:00:05]} 26. Qxb7 {[%emt 0:01:46]} Rxb7 {[%emt 0:00:04]} 27. Nc4 {[%emt 0:00:04]} Be7 {[%emt 0:00:08]} 28. f5 {[%emt 0:00:13]} Rd8 {[%emt 0:00:12]} 29. Rf3 {[%emt 0:00:24]} (29. f6 $5 Bf8 $8 30. g4 $14) 29... d5 {[%emt 0:00:16]} (29... Kg7 $11 {keeps the balance.}) 30. exd5 $16 {[%emt 0:00:38] Black is now going downhill.} Rxd5 {[%emt 0:00:03]} ({Better is} 30... g5) 31. fxg6 {[%emt 0:00:04]} fxg6 {[%emt 0:00:03]} 32. Re2 {[%emt 0:00:04]} Rf5 {[%emt 0:00:49]} (32... Ra7 $16 33. Re6 Kg7) 33. Rxf5 $18 {[%emt 0:00:19]} gxf5 {[%emt 0:00:03][%mdl 4096] Endgame KRB-KRN} 34. Re6 {[%emt 0:00:04][%csl LRa6,LRh6]} Bg5 {[%emt 0:00:10]} (34... a5 {was worth a try.} 35. Kf2 (35. Nxa5 Kf7 $16) (35. Rxh6 Rb3 $16) 35... Kg7) 35. Kf2 {[%emt 0:00:12]} (35. Rxa6 Rb3 $16) 35... Bc1 {[%emt 0:00:48]} 36. Rxa6 {[%emt 0:00:06]} Bxb2 {[%emt 0:00:06]} 37. a4 {[%emt 0:00:04]} ({Less strong is} 37. Rxh6 Rb3 $16) 37... Bc1 {[%emt 0:00:22]} 38. Rb6 {[%emt 0:00:12]} Ra7 {[%emt 0:02:22]} 39. a5 {[%emt 0:00:04][%cal Ba4a5,Ba5a6][%mdl 32]} Bf4 {[%emt 0:00:04]} 40. a6 {[%emt 0:00:06]} Kf8 $2 {[%emt 0:00:04] [#]} (40... h5 41. Kf3 Bc7) 41. Kf3 {[%emt 0:00:11]} Bc7 {[%emt 0:00:06]} 42. Rxh6 {[%emt 0:00:17]} Ke7 {[%emt 0:00:03]} 43. g4 {[%emt 0:00:19]} fxg4+ {[%emt 0:00:04]} 44. hxg4 {[%emt 0:00:03]} Kd7 {[%emt 0:00:03]} 45. Ke4 {[%emt 0:00:42]} (45. Ne5+ $142 Bxe5 46. Rh7+ {[%mdl 64] Skewer} Kc6 47. Rxa7 c4 48. Re7 cxd3 49. Rxe5 Kb6 50. Re6+ Kc5 51. a7) 45... Ra8 {[%emt 0:00:07]} 46. Kd5 {[%emt 0:00:04]} Rg8 {[%emt 0:00:10]} 47. Rh7+ {[%emt 0:00:18]} Kc8 {[%emt 0:00:03]} 48. Nd6+ {[%emt 0:00:21] Weighted Error Value: White=0.10 (very precise) /Black=0.65} (48. Ne5 $142 Re8 49. Nc6) 1-0